bitfinex/quotes_BTCUSD_20250330
["timestamp","ask_amount","ask_price","bid_price","bid_amount"]
[1743372256998,0.00047257,82049.0,82045.0,0.00243739]
[1743372257403,0.00047257,82049.0,82045.0,0.00443739]
[1743372257605,0.00047257,82049.0,82045.0,0.002]
[1743372258021,0.00047257,82049.0,82045.0,0.004]
[1743372258755,0.00047257,82049.0,82045.0,0.0555937]
[1743372258960,0.00047257,82049.0,82048.0,0.255946]
[1743372259587,0.00047257,82049.0,82047.0,0.082]
[1743372259781,0.00047257,82049.0,82045.0,0.004]
[1743372260088,0.00047257,82049.0,82047.0,0.255949]
[1743372260381,0.00047257,82049.0,82048.0,0.01562431]
[1743372260583,0.00047257,82049.0,82048.0,0.11307753]
[1743372260739,0.00047257,82049.0,82048.0,0.11551469]
[1743372260944,0.00047257,82049.0,82048.0,0.11507753]
[1743372261141,0.00047257,82049.0,82048.0,0.11307753]
[1743372261526,0.00047257,82049.0,82048.0,0.057687]
[1743372261740,0.00047257,82049.0,82048.0,0.18040899]
[1743372261940,0.00047257,82049.0,82048.0,0.17997183]
[1743372262141,0.00047257,82049.0,82048.0,0.18097183]
[1743372263055,0.00047257,82049.0,82048.0,0.19794959]
[1743372263257,0.00047257,82049.0,82048.0,0.35343574]
[1743372263688,0.00047257,82049.0,82048.0,0.65043574]
[1743372263907,0.00147257,82049.0,82048.0,0.65343574]
[1743372264082,0.00147257,82049.0,82048.0,0.65843574]
[1743372264446,0.00147257,82049.0,82048.0,0.68843574]
[1743372264578,0.00047257,82049.0,82048.0,0.68543574]
[1743372264947,0.00147257,82049.0,82048.0,0.68343574]
[1743372265472,0.00147257,82049.0,82048.0,0.68543574]
[1743372265667,0.00047257,82049.0,82048.0,0.68043574]
[1743372267109,0.00247257,82049.0,82048.0,0.68843574]
[1743372267578,0.00147257,82049.0,82048.0,0.68343574]
[1743372267745,0.00147257,82049.0,82048.0,0.68543574]
[1743372267995,0.00247257,82049.0,82048.0,0.68843574]
[1743372268343,0.00247257,82049.0,82048.0,0.56797183]
[1743372268547,0.00247257,82049.0,82048.0,0.72517183]
[1743372268754,0.00247257,82049.0,82048.0,0.604887]
[1743372268977,0.00247257,82049.0,82048.0,0.447687]
[1743372269198,0.00247257,82049.0,82048.0,0.604767]
[1743372269365,0.00280937,82049.0,82048.0,0.604767]
[1743372269735,0.00280937,82049.0,82048.0,0.0535]
[1743372269906,0.00280937,82049.0,82048.0,0.222607]
[1743372270108,0.00280937,82049.0,82048.0,0.23479]
[1743372270311,0.00280937,82049.0,82048.0,0.30819514]
[1743372270517,0.00180937,82049.0,82048.0,0.30819514]
[1743372270683,0.00280937,82049.0,82048.0,0.23179]
[1743372270883,0.00180937,82049.0,82048.0,0.23422714]
[1743372271086,0.00280937,82049.0,82048.0,0.23222714]
[1743372271289,0.00380937,82049.0,82048.0,0.23722714]
[1743372271552,0.00380937,82049.0,82048.0,0.23479]
[1743372271728,0.00280937,82049.0,82048.0,0.017183]
[1743372271934,0.00380937,82049.0,82048.0,0.16484]
[1743372272961,0.00380937,82049.0,82048.0,0.008]
[1743372273353,0.01599637,82049.0,82048.0,0.1648]
[1743372273688,0.00280937,82049.0,82048.0,0.1618]
[1743372273902,0.01399404,82049.0,82048.0,0.1618]
[1743372274170,0.01299404,82049.0,82048.0,0.1598]
[1743372274356,0.01299404,82049.0,82048.0,0.1638]
[1743372274557,0.01199404,82049.0,82048.0,0.1608]
[1743372274757,0.01199404,82049.0,82048.0,0.1568]
[1743372275004,0.01199404,82049.0,82048.0,0.1628]
[1743372275496,0.00080937,82049.0,82048.0,0.417146]
[1743372275696,0.00080937,82049.0,82048.0,0.414146]
[1743372275831,0.00080937,82049.0,82048.0,0.48537299]
[1743372276465,0.00080937,82049.0,82048.0,0.53047299]
[1743372276930,0.00080937,82049.0,82048.0,0.53347299]
[1743372277346,0.00080937,82049.0,82048.0,0.53047299]
[1743372277484,0.00080937,82049.0,82048.0,0.53347299]
[1743372277915,0.00080937,82049.0,82048.0,0.52747299]
[1743372278118,0.00080937,82049.0,82048.0,0.53247299]
[1743372278328,0.00080937,82049.0,82048.0,0.53547299]
[1743372279912,0.00080937,82049.0,82048.0,0.464246]
[1743372280555,0.00080937,82049.0,82048.0,0.476429]
[1743372283004,0.012183,82077.0,82060.0,0.243723]
[1743372283190,0.01230397,82077.0,82060.0,0.243723]
[1743372283400,0.01230397,82077.0,82059.0,0.012186]
[1743372283633,0.01230397,82077.0,82060.0,0.0524022]
[1743372283835,0.01120777,82076.0,82060.0,0.0524022]
[1743372283984,0.01120777,82076.0,82063.0,0.012185]
[1743372284185,0.01120777,82076.0,82065.0,0.012185]
[1743372284403,0.03362318,82076.0,82065.0,0.012185]
[1743372284566,0.03362318,82076.0,82066.0,0.05002552]
[1743372285257,0.03362318,82076.0,82066.0,0.06221052]
[1743372285389,0.03562318,82076.0,82071.0,0.255872]
[1743372285573,0.03362318,82075.0,82069.0,0.012184]
[1743372285777,0.03362318,82075.0,82070.0,0.243694]
[1743372285996,0.03362318,82075.0,82074.0,0.255866]
[1743372286818,0.01120777,82075.0,82074.0,0.255866]
[1743372286993,0.004,82076.0,82071.0,0.33763965]
[1743372287194,0.00012097,82077.0,82074.0,0.003]
[1743372287600,0.00012097,82077.0,82074.0,0.007]
[1743372287840,0.00012097,82077.0,82075.0,0.08685697]
[1743372288067,0.00012097,82077.0,82073.0,0.243683]
[1743372288415,0.00012097,82077.0,82072.0,0.012184]
[1743372288734,0.00012097,82077.0,82074.0,0.004]
[1743372290076,0.00012097,82077.0,82074.0,0.007]
[1743372290645,0.00012097,82077.0,82074.0,0.003]
[1743372291145,0.00012097,82077.0,82075.0,0.15448]
[1743372291513,0.00012097,82077.0,82074.0,0.003]
[1743372291514,0.336259,82076.0,82074.0,0.007]
[1743372291714,0.012183,82075.0,82074.0,0.007]
[1743372292126,0.02339304,82075.0,82074.0,0.007]
[1743372292352,0.02339304,82075.0,82058.0,0.15448]
[1743372292353,0.255878,82071.0,82058.0,0.15448]
[1743372292574,0.012184,82070.0,82058.0,0.15448]
[1743372292782,0.255881,82069.0,82058.0,0.15448]
[1743372292987,0.243703,82067.0,82058.0,0.15448]
[1743372293197,0.012185,82068.0,82058.0,0.15448]
[1743372293363,0.012185,82068.0,82065.0,0.0001683]
[1743372293576,0.01121004,82066.0,82065.0,0.0001683]
[1743372294812,0.00621004,82066.0,82065.0,0.0001683]
[1743372295015,0.02862591,82066.0,82065.0,0.0001683]
[1743372295418,0.02862591,82066.0,82065.0,0.0021683]
[1743372295795,0.02862591,82066.0,82065.0,0.02079713]
[1743372295999,0.05322452,82066.0,82065.0,0.0051683]
[1743372296839,0.02862591,82066.0,82065.0,0.0051683]
[1743372297181,0.02862591,82066.0,82065.0,0.1589283]
[1743372297990,0.02862591,82066.0,82065.0,0.0051683]
[1743372298211,0.02862591,82066.0,82065.0,0.1587683]
[1743372298410,0.02241587,82066.0,82065.0,0.1587683]
[1743372299122,0.02241587,82066.0,82065.0,0.17464513]
[1743372299323,0.02241587,82066.0,82065.0,0.1587683]
[1743372300355,0.02458223,82071.0,82065.0,0.1587683]
[1743372300721,0.243697,82070.0,82065.0,0.0051683]
[1743372300934,0.337591,82066.0,82065.0,0.0051683]
[1743372301175,0.0817,82066.0,82065.0,0.0031683]
[1743372301357,0.15569022,82066.0,82065.0,0.0031683]
[1743372301556,0.012185,82066.0,82065.0,0.0011683]
[1743372301751,0.012185,82067.0,82065.0,0.0001683]
[1743372301954,0.012185,82067.0,82065.0,0.0011683]
[1743372301955,0.255889,82067.0,82065.0,0.0011683]
[1743372302133,0.012185,82066.0,82065.0,0.0031683]
[1743372302330,0.07047635,82066.0,82065.0,0.0031683]
[1743372302590,0.07047635,82066.0,82065.0,0.0021683]
[1743372303477,0.08841223,82066.0,82065.0,0.0021683]
[1743372303679,0.16027718,82066.0,82065.0,0.0001683]
[1743372303827,0.08841223,82066.0,82065.0,0.0001683]
[1743372305298,0.05254063,82066.0,82065.0,0.0001683]
[1743372306300,0.05287723,82066.0,82065.0,0.0001683]
[1743372306705,0.03494135,82066.0,82065.0,0.0001683]
[1743372308702,0.04615096,82066.0,82065.0,0.0001683]
[1743372309613,0.08201942,82066.0,82065.0,0.0001683]
[1743372310592,0.09995153,82066.0,82065.0,0.0001683]
[1743372311536,0.10195153,82066.0,82065.0,0.0001683]
[1743372312065,0.09176653,82066.0,82065.0,0.0001683]
[1743372313313,0.08776653,82066.0,82065.0,0.0001683]
[1743372313512,0.08776653,82066.0,82065.0,0.0021683]
[1743372313715,0.08776653,82066.0,82065.0,0.0031683]
[1743372314250,0.08776653,82066.0,82065.0,0.1557683]
[1743372315107,0.06983442,82066.0,82065.0,0.1557683]
[1743372315511,0.03396596,82066.0,82065.0,0.1557683]
[1743372318516,0.03396596,82066.0,82065.0,0.1679533]
[1743372318863,0.03396596,82066.0,82065.0,0.1557683]
[1743372319459,0.02275635,82066.0,82065.0,0.1557683]
[1743372321072,0.02275635,82066.0,82065.0,0.0031683]
[1743372321419,0.02275635,82066.0,82065.0,0.1552083]
[1743372321847,0.05866412,82066.0,82065.0,0.1552083]
[1743372322230,0.0878493,82066.0,82065.0,0.1552083]
[1743372322445,0.0878493,82066.0,82065.0,0.1551683]
[1743372324854,0.06988919,82066.0,82065.0,0.1551683]
[1743372326259,0.06988919,82066.0,82065.0,0.1673533]
[1743372326460,0.06988919,82066.0,82065.0,0.56163101]
[1743372326667,0.06988919,82066.0,82065.0,0.60799415]
[1743372327506,0.06988919,82066.0,82065.0,0.60699415]
[1743372327717,0.07088919,82066.0,82065.0,0.61199415]
[1743372327857,0.07088919,82066.0,82065.0,0.5976533]
[1743372328059,0.05966412,82066.0,82065.0,0.5976533]
[1743372328266,0.05966412,82066.0,82065.0,0.5956533]
[1743372328467,0.0013366,82066.0,82065.0,0.5956533]
[1743372328684,0.0023366,82066.0,82065.0,0.72093813]
[1743372330918,0.0023366,82066.0,82065.0,0.85576381]
[1743372332064,0.0003366,82066.0,82065.0,0.84576381]
[1743372332469,0.0013366,82066.0,82065.0,0.85076381]
[1743372333534,0.0013366,82066.0,82065.0,0.85676381]
[1743372334032,0.0013366,82066.0,82065.0,0.70456381]
[1743372334242,0.0013366,82066.0,82065.0,0.85648381]
[1743372335162,0.0013366,82066.0,82065.0,0.86563305]
[1743372337750,0.0013366,82066.0,82065.0,0.89063305]
[1743372338459,9.7e-07,82077.0,82076.0,0.629159]
[1743372338672,5.7e-07,82079.0,82078.0,0.48052385]
[1743372338873,1.7e-07,82081.0,82080.0,0.465983]
[1743372339071,1.7e-07,82081.0,82080.0,0.60080868]
[1743372341136,1.7e-07,82081.0,82080.0,0.75272868]
[1743372341359,1.7e-07,82081.0,82080.0,0.75872868]
[1743372341554,1.7e-07,82081.0,82080.0,0.84546726]
[1743372342579,1.7e-07,82081.0,82080.0,1.26476726]
[1743372344219,0.0003366,82103.0,82088.0,0.464982]
[1743372344418,0.0003366,82103.0,82088.0,0.59980768]
[1743372345033,0.0003366,82103.0,82088.0,0.75152768]
[1743372345242,0.0003366,82103.0,82088.0,0.87181251]
[1743372345414,0.0003366,82103.0,82088.0,0.87781251]
[1743372345591,0.0003366,82103.0,82088.0,0.88671297]
[1743372345795,0.0003366,82103.0,82088.0,0.58978814]
[1743372345973,0.0003366,82103.0,82088.0,0.469862]
[1743372346397,0.0003366,82103.0,82088.0,0.48440285]
[1743372346716,0.0003366,82103.0,82088.0,0.49040285]
[1743372347297,0.0003366,82103.0,82088.0,0.33872285]
[1743372347503,0.0003366,82103.0,82088.0,0.175822]
[1743372347721,0.0003366,82103.0,82088.0,0.24700596]
[1743372348023,0.0003366,82103.0,82088.0,0.2385699]
[1743372348179,0.0003366,82103.0,82088.0,0.2325699]
[1743372348375,0.0003366,82103.0,82088.0,0.24700596]
[1743372348610,0.0003366,82103.0,82088.0,0.2445699]
[1743372348817,0.092681,82089.0,82088.0,0.006]
[1743372349224,0.10669529,82089.0,82088.0,0.006]
[1743372349425,0.10669529,82089.0,82087.0,0.1516]
[1743372349625,0.03019529,82089.0,82087.0,0.1516]
[1743372349827,0.03019529,82089.0,82088.0,0.006]
[1743372350010,0.004,82089.0,82088.0,0.006]
[1743372350219,0.03016702,82089.0,82088.0,0.006]
[1743372350501,0.00700048,82089.0,82088.0,0.006]
[1743372350611,0.03091886,82089.0,82087.0,0.1516]
[1743372350861,0.02791838,82089.0,82087.0,0.1516]
[1743372351092,0.02791838,82089.0,82088.0,0.005]
[1743372351295,0.004,82089.0,82088.0,0.002]
[1743372351499,0.004,82089.0,82087.0,0.1516]
[1743372351747,0.004,82089.0,82087.0,0.1546]
[1743372353223,0.090182,82082.0,82065.0,0.0001683]
[1743372353443,0.078,82082.0,82081.0,0.0001682]
[1743372353742,0.078,82082.0,82081.0,0.1517682]
[1743372353940,0.321658,82082.0,82081.0,0.1517682]
[1743372354365,0.078,82082.0,82081.0,0.1517682]
[1743372354695,0.078,82082.0,82081.0,0.1537682]
[1743372355031,0.078,82082.0,82081.0,0.0041682]
[1743372355231,0.078,82082.0,82081.0,0.1557282]
[1743372355787,0.078,82082.0,82081.0,0.0041682]
[1743372355788,0.11256532,82082.0,82081.0,0.0041682]
[1743372356225,0.10038332,82082.0,82081.0,0.0041682]
[1743372356939,0.11157633,82082.0,82081.0,0.0041682]
[1743372358854,0.10038332,82082.0,82081.0,0.0041682]
[1743372359059,0.11256532,82082.0,82081.0,0.0041682]
[1743372359270,0.090182,82082.0,82081.0,0.0041682]
[1743372359825,0.1564655,82082.0,82081.0,0.0041682]
[1743372360244,0.090182,82082.0,82081.0,0.0041682]
[1743372360847,0.11336478,82082.0,82081.0,0.0001682]
[1743372361265,0.11436478,82082.0,82081.0,0.0001682]
[1743372361791,0.12555218,82082.0,82081.0,0.0001682]
[1743372362361,0.14792693,82082.0,82081.0,0.0001682]
[1743372363729,0.012183,82075.0,82065.0,0.00012097]
[1743372364329,0.02311592,82074.0,82065.0,0.04083627]
[1743372364524,0.02311592,82074.0,82065.0,0.00012097]
[1743372364703,0.243679,82075.0,82065.0,0.00012097]
[1743372365304,0.02311592,82074.0,82065.0,0.00012097]
[1743372365885,0.243685,82073.0,82065.0,0.00012097]
[1743372366257,0.001,82075.0,82065.0,0.00012097]
[1743372366391,0.02311592,82072.0,82065.0,0.03431098]
[1743372366746,0.02311592,82071.0,82065.0,0.03431098]
[1743372366890,0.244682,82075.0,82065.0,0.00028917]
[1743372367093,0.02311592,82070.0,82065.0,0.00028917]
[1743372367413,0.243682,82075.0,82065.0,0.00028917]
[1743372367623,0.001,82074.0,82065.0,0.00028917]
[1743372367875,0.02311592,82074.0,82065.0,0.00028917]
[1743372368201,0.00493444,82073.0,82065.0,0.00028917]
[1743372369523,0.00593444,82073.0,82065.0,0.00028917]
[1743372373225,0.2439964,82082.0,82066.0,0.06753992]
[1743372373423,0.02269253,82072.0,82066.0,0.06753992]
[1743372373748,0.0003364,82082.0,82072.0,0.255872]
[1743372373949,0.0003364,82082.0,82073.0,0.255866]
[1743372374141,0.0003364,82082.0,82074.0,0.0825507]
[1743372374343,0.0003364,82082.0,82074.0,0.3384137]
[1743372374925,0.0003364,82082.0,82076.0,0.243676]
[1743372375130,0.0013364,82082.0,82076.0,0.243676]
[1743372375574,0.0003364,82082.0,82076.0,0.255859]
[1743372375775,0.0013364,82082.0,82077.0,0.08745057]
[1743372375986,0.0013364,82082.0,82079.0,0.012183]
[1743372376211,0.0013364,82082.0,82081.0,0.012183]
[1743372376429,0.0013364,82082.0,82081.0,0.093683]
[1743372376981,0.0003364,82082.0,82081.0,0.093683]
[1743372377703,0.0003364,82082.0,82081.0,0.096683]
[1743372377882,0.0003364,82082.0,82081.0,0.099683]
[1743372378312,0.0003364,82082.0,82081.0,0.18321694]
[1743372380026,0.0003364,82082.0,82081.0,0.17721694]
[1743372380236,0.0003364,82082.0,82081.0,0.18121694]
[1743372380437,0.0003364,82082.0,82081.0,0.18521694]
[1743372380635,0.0003364,82082.0,82081.0,0.008]
[1743372380857,0.243597,82103.0,82083.0,0.012182]
[1743372381060,0.012179,82105.0,82086.0,0.012182]
[1743372381305,0.01895361,82099.0,82088.0,0.012182]
[1743372381609,0.01895274,82098.0,82088.0,0.012182]
[1743372381927,0.02478249,82103.0,82089.0,0.178517]
[1743372382099,0.02478249,82103.0,82091.0,0.012181]
[1743372382310,0.01895272,82097.0,82089.0,0.471652]
[1743372382452,0.02478249,82103.0,82089.0,0.471652]
[1743372382657,0.02478249,82103.0,82089.0,0.483833]
[1743372382863,0.01895219,82102.0,82090.0,0.101986]
[1743372383266,0.01903849,82102.0,82098.0,0.01218]
[1743372383468,0.01121767,82101.0,82100.0,0.01218]
[1743372383726,0.01121767,82101.0,82100.0,0.255783]
[1743372383912,0.01121767,82101.0,82100.0,0.0767369]
[1743372384301,0.01121767,82101.0,82098.0,0.25579]
[1743372384508,0.01121767,82101.0,82096.0,0.255797]
[1743372385147,8.63e-05,82102.0,82098.0,0.243611]
[1743372385296,8.63e-05,82102.0,82097.0,0.01218]
[1743372385498,8.63e-05,82102.0,82089.0,0.078737]
[1743372385704,8.63e-05,82102.0,82084.0,0.02396423]
[1743372385932,0.13631365,82101.0,82085.0,0.14916]
[1743372386167,0.0037773,82101.0,82087.0,0.243643]
[1743372386349,0.01899062,82101.0,82087.0,0.243643]
[1743372386758,0.01899062,82101.0,82085.0,0.14916]
[1743372386960,0.255785,82100.0,82085.0,0.14916]
[1743372387302,0.26699089,82100.0,82086.0,0.09969892]
[1743372387532,0.243612,82098.0,82086.0,0.09969892]
[1743372387722,0.012181,82094.0,82087.0,0.14896]
[1743372387926,0.012181,82094.0,82088.0,0.14896]
[1743372388125,0.255803,82095.0,82088.0,0.14896]
[1743372388288,0.243622,82095.0,82088.0,0.14896]
[1743372388484,0.243629,82092.0,82089.0,0.14888]
[1743372388894,0.012181,82090.0,82089.0,0.14888]
[1743372389101,0.255825,82087.0,82086.0,0.001]
[1743372389417,0.243638,82089.0,82086.0,0.001]
[1743372389745,0.243646,82087.0,82083.0,0.14884]
[1743372390147,0.25485189,82087.0,82083.0,0.14884]
[1743372390330,0.00369349,82086.0,82083.0,0.14884]
[1743372391085,0.00369349,82086.0,82083.0,0.14984]
[1743372391429,0.01525309,82085.0,82083.0,0.14984]
[1743372391591,0.03766488,82085.0,82083.0,0.15184]
[1743372391789,0.04887077,82085.0,82083.0,0.15184]
[1743372392892,0.02241179,82084.0,82083.0,0.14984]
[1743372393230,0.03361768,82084.0,82083.0,0.14984]
[1743372393563,0.03731715,82084.0,82083.0,0.14984]
[1743372393941,0.03731715,82084.0,82083.0,0.15084]
[1743372394099,0.03731715,82084.0,82083.0,0.14984]
[1743372394308,0.03731715,82084.0,82083.0,0.14884]
[1743372394513,0.03731715,82084.0,82083.0,0.14984]
[1743372394701,0.02611126,82084.0,82083.0,0.15084]
[1743372396255,0.02611126,82084.0,82083.0,0.14984]
[1743372396432,0.02611126,82084.0,82083.0,0.165924]
[1743372396637,0.02611126,82084.0,82083.0,0.15084]
[1743372397017,0.03732163,82084.0,82083.0,0.15084]
[1743372398384,0.02611126,82084.0,82083.0,0.15084]
[1743372399094,0.02611126,82084.0,82083.0,0.002]
[1743372399229,0.03829326,82084.0,82083.0,0.15024]
[1743372399425,0.02611126,82084.0,82083.0,0.15024]
[1743372400197,0.12164794,82084.0,82083.0,0.002]
[1743372400396,0.03829326,82084.0,82083.0,0.002]
[1743372400605,0.07417694,82084.0,82083.0,0.002]
[1743372400783,0.37417694,82084.0,82083.0,0.002]
[1743372400985,0.49446177,82084.0,82083.0,0.002]
[1743372401191,0.92377473,82084.0,82083.0,0.001]
[1743372401398,0.92377473,82084.0,82065.0,0.0001682]
[1743372401399,0.012185,82066.0,82065.0,0.0001682]
[1743372401619,1.054591,82066.0,82065.0,0.0001682]
[1743372401824,1.05808208,82066.0,82065.0,0.0001682]
[1743372402000,1.13751077,82066.0,82065.0,0.0001682]
[1743372402201,1.14647758,82066.0,82065.0,0.0001682]
[1743372402424,1.19951006,82066.0,82065.0,0.0001682]
[1743372402751,0.333259,82044.0,82029.0,0.14952]
[1743372403041,0.33677388,82044.0,82043.0,0.00028937]
[1743372403262,0.39726547,82044.0,82043.0,0.00028937]
[1743372403419,0.33677388,82044.0,82043.0,0.00028937]
[1743372403619,0.40403616,82044.0,82043.0,0.00028937]
[1743372404029,0.43316151,82044.0,82043.0,0.00028937]
[1743372404433,0.43316151,82044.0,82043.0,0.00228937]
[1743372404675,0.44967878,82044.0,82043.0,0.00228937]
[1743372405681,0.44967878,82044.0,82043.0,3.7e-07]
[1743372405682,1.24652976,82044.0,82043.0,3.7e-07]
[1743372405950,1.31527061,82044.0,82043.0,3.7e-07]
[1743372406142,1.3304375,82044.0,82043.0,3.7e-07]
[1743372406428,1.3304375,82044.0,82027.0,0.10706926]
[1743372406429,0.256009,82028.0,82027.0,0.10706926]
[1743372406647,0.256009,82028.0,82027.0,0.10754183]
[1743372406897,0.27465873,82028.0,82027.0,0.10754183]
[1743372407132,0.27465873,82028.0,82027.0,0.00047257]
[1743372408762,0.27465873,82028.0,82027.0,0.00247257]
[1743372409000,0.27465873,82028.0,82027.0,0.00447257]
[1743372410622,0.27424113,82028.0,82027.0,0.00447257]
[1743372412399,0.31577498,82028.0,82027.0,0.00447257]
[1743372412848,0.69307498,82028.0,82027.0,0.00447257]
[1743372413519,0.69307498,82028.0,82027.0,0.00047257]
[1743372413797,0.74378349,82028.0,82027.0,0.00047257]
[1743372414286,0.75488939,82028.0,82027.0,0.00047257]
[1743372415016,0.75388939,82028.0,82027.0,0.00064087]
[1743372415230,0.72035048,82028.0,82027.0,0.00064087]
[1743372415388,1.22235048,82028.0,82027.0,0.00064087]
[1743372415595,1.22035048,82028.0,82027.0,0.00064087]
[1743372415822,0.85196745,82028.0,82027.0,0.00064087]
[1743372415976,0.55396745,82028.0,82027.0,0.00064087]
[1743372416178,0.55596745,82028.0,82027.0,0.00064087]
[1743372416611,0.53375563,82028.0,82027.0,0.00064087]
[1743372416828,0.53175563,82028.0,82027.0,0.00064087]
[1743372417033,0.53175563,82028.0,82027.0,0.25665387]
[1743372417236,0.53175563,82028.0,82027.0,0.12594087]
[1743372417237,0.51864973,82028.0,82027.0,0.12594087]
[1743372418555,0.51864973,82028.0,82027.0,0.07974087]
[1743372418753,0.5,82028.0,82027.0,0.07974087]
[1743372419009,0.51552427,82028.0,82024.0,0.256022]
[1743372419449,0.51240427,82028.0,82020.0,0.1623203]
[1743372419667,0.51240427,82028.0,82021.0,0.012191]
[1743372419823,0.51240427,82028.0,82027.0,0.003]
[1743372420006,0.51240427,82028.0,82024.0,0.091291]
[1743372420408,0.49688,82028.0,82024.0,0.0791]
[1743372420613,0.49688,82028.0,82025.0,0.19608]
[1743372420959,0.01552427,82027.0,82025.0,0.19608]
[1743372421164,0.49688,82028.0,82025.0,0.19608]
[1743372421782,0.01552322,82027.0,82025.0,0.19608]
[1743372422108,0.0119845,82027.0,82025.0,0.20208]
[1743372422311,0.02771422,82026.0,82025.0,0.006]
[1743372422514,0.02771422,82026.0,82025.0,0.003]
[1743372422767,0.02771422,82026.0,82020.0,0.1499283]
[1743372422768,0.256019,82025.0,82020.0,0.1499283]
[1743372424356,0.012191,82024.0,82020.0,0.1499283]
[1743372424529,0.243839,82021.0,82020.0,0.1499283]
[1743372424739,0.25603,82021.0,82020.0,0.0031683]
[1743372425666,0.25603,82021.0,82020.0,0.0001683]
[1743372425854,0.2793118,82021.0,82020.0,0.0031683]
[1743372425991,0.28279199,82021.0,82020.0,0.0031683]
[1743372426193,0.29393288,82021.0,82020.0,0.0001683]
[1743372426595,0.6150661,82021.0,82020.0,0.0001683]
[1743372427696,0.64955773,82021.0,82020.0,0.0001683]
[1743372427952,1.1123661,82021.0,82020.0,0.0001683]
[1743372428720,1.17310695,82021.0,82020.0,0.0001683]
[1743372428929,1.24222807,82021.0,82020.0,0.0001683]
[1743372429160,1.24122807,82021.0,82020.0,0.0001683]
[1743372429562,1.27122807,82021.0,82020.0,0.0001683]
[1743372429737,1.3069788,82021.0,82020.0,0.0001683]
[1743372430049,1.3099788,82021.0,82020.0,0.0001683]
[1743372430247,1.3089788,82021.0,82020.0,0.0001683]
[1743372431185,1.3069788,82021.0,82020.0,0.0001683]
[1743372431452,0.556059,82012.0,82011.0,0.004]
[1743372431883,0.67634383,82012.0,82011.0,0.00414157]
[1743372431885,0.70983546,82012.0,82011.0,0.00414157]
[1743372432140,0.74991657,82012.0,82011.0,0.00414157]
[1743372432341,0.6943363,82012.0,82011.0,0.00414157]
[1743372432759,0.75536883,82012.0,82011.0,0.00414157]
[1743372433111,0.75736883,82012.0,82011.0,0.00414157]
[1743372433357,1.20451911,82012.0,82011.0,0.00414157]
[1743372433566,1.20451911,82012.0,81996.0,1e-06]
[1743372433567,0.256106,81997.0,81996.0,1e-06]
[1743372433786,0.28064422,81997.0,81996.0,1e-06]
[1743372433933,0.259511,81997.0,81996.0,1e-06]
[1743372435108,0.26846165,81997.0,81996.0,1e-06]
[1743372435258,0.28460131,81997.0,81996.0,1e-06]
[1743372435479,0.58460131,81997.0,81996.0,1e-06]
[1743372435905,0.67168412,81997.0,81996.0,1e-06]
[1743372436090,0.80407727,81997.0,81996.0,1e-06]
[1743372437140,0.8395689,81997.0,81996.0,1e-06]
[1743372437490,0.82136303,81997.0,81996.0,1e-06]
[1743372437691,0.256152,81982.0,81981.0,0.004]
[1743372437859,0.256152,81982.0,81981.0,0.00414253]
[1743372438072,0.27151508,81982.0,81981.0,0.00414253]
[1743372439279,0.30056536,81982.0,81981.0,0.00414253]
[1743372439453,0.33064923,81982.0,81981.0,0.00414253]
[1743372439727,0.256177,81974.0,81973.0,5.3e-07]
[1743372439927,0.98881785,81974.0,81973.0,5.3e-07]
[1743372440058,0.974277,81974.0,81973.0,5.3e-07]
[1743372440270,1.09456183,81974.0,81973.0,5.3e-07]
[1743372440475,1.13700411,81974.0,81973.0,5.3e-07]
[1743372441106,1.23937268,81974.0,81973.0,5.3e-07]
[1743372441286,1.20588105,81974.0,81973.0,5.3e-07]
[1743372441632,1.24257926,81974.0,81973.0,5.3e-07]
[1743372441797,1.0888028,81974.0,81973.0,5.3e-07]
[1743372442161,1.0898028,81974.0,81973.0,5.3e-07]
[1743372442464,0.3635048,81974.0,81973.0,5.3e-07]
[1743372442666,0.3635048,81974.0,81965.0,0.004]
[1743372442667,0.256203,81966.0,81965.0,0.004]
[1743372443105,0.25950566,81966.0,81965.0,0.004]
[1743372443735,0.26845631,81966.0,81965.0,0.004]
[1743372444194,0.32648884,81966.0,81965.0,0.004]
[1743372444961,0.32748884,81966.0,81965.0,0.004]
[1743372445160,0.34849364,81966.0,81965.0,0.003]
[1743372445599,0.34649364,81966.0,81965.0,0.003]
[1743372445781,0.4345815,81966.0,81965.0,0.003]
[1743372446012,0.4355815,81966.0,81965.0,0.003]
[1743372446375,0.4375815,81966.0,81965.0,0.003]
[1743372446770,0.5179815,81966.0,81965.0,1e-06]
[1743372447199,0.38498527,81966.0,81965.0,1e-06]
[1743372447416,0.84537364,81966.0,81965.0,1e-06]
[1743372447790,0.85726885,81966.0,81965.0,1e-06]
[1743372448000,0.88876048,81966.0,81965.0,1e-06]
[1743372448203,0.89176048,81966.0,81965.0,1e-06]
[1743372448404,0.85826885,81966.0,81965.0,1e-06]
[1743372448652,0.97855368,81966.0,81965.0,1e-06]
[1743372448987,0.85826885,81966.0,81965.0,1e-06]
[1743372450447,0.244063,81946.0,81943.0,0.14630293]
[1743372450647,0.012202,81948.0,81943.0,0.14630293]
[1743372450858,0.00331601,81945.0,81943.0,0.14644564]
[1743372451072,0.25321062,81947.0,81943.0,0.14644564]
[1743372451242,0.002487,81944.0,81943.0,0.14644564]
[1743372451443,0.01100066,81944.0,81943.0,0.15114271]
[1743372451656,0.01349066,81944.0,81943.0,0.15214271]
[1743372451808,0.07152319,81944.0,81943.0,0.15214271]
[1743372452168,0.07152319,81944.0,81943.0,0.15131111]
[1743372452524,0.07152319,81944.0,81943.0,0.15231111]
[1743372452727,0.10047864,81944.0,81943.0,0.15231111]
[1743372453533,0.10047864,81944.0,81943.0,0.24721411]
[1743372453534,0.08947798,81944.0,81943.0,0.24721411]
[1743372453880,0.08947798,81944.0,81943.0,0.49028611]
[1743372454081,0.09712318,81944.0,81943.0,0.49028611]
[1743372454357,0.04463318,81944.0,81943.0,0.53548611]
[1743372454740,0.04463318,81944.0,81943.0,0.29141411]
[1743372455092,0.03660065,81944.0,81943.0,0.29141411]
[1743372455812,0.01781874,81963.0,81949.0,0.012202]
[1743372456136,0.01781874,81963.0,81946.0,0.012203]
[1743372456137,0.244015,81962.0,81946.0,0.012203]
[1743372456285,0.24651106,81962.0,81947.0,0.012203]
[1743372456480,0.012201,81958.0,81943.0,0.53648311]
[1743372456891,0.00251404,81957.0,81945.0,0.012203]
[1743372457087,0.256247,81952.0,81946.0,0.15244]
[1743372457589,0.00250205,81951.0,81946.0,0.15244]
[1743372458226,0.02896869,81956.0,81943.0,0.14341411]
[1743372458431,0.02896869,81956.0,81947.0,0.15292]
[1743372458855,0.01121496,81955.0,81947.0,0.15292]